bitfinex/quotes_ETHUSD_20250725
["timestamp","ask_amount","ask_price","bid_price","bid_amount"]
[1753462515445,2.74518204,3642.8,3642.4,4.4276]
[1753462515619,0.1376,3643.0,3642.4,4.4276]
[1753462515821,2.74511489,3642.9,3642.4,4.8875]
[1753462516229,2.7451539,3642.8,3642.4,4.8875]
[1753462516422,2.7451539,3642.8,3642.4,4.4276]
[1753462517045,2.74514369,3642.8,3642.4,4.4276]
[1753462517344,2.74508777,3642.9,3642.4,4.4276]
[1753462517544,2.74515536,3642.8,3642.4,4.4276]
[1753462517762,2.74522528,3642.7,3642.4,4.4276]
[1753462518047,2.74511866,3642.9,3642.4,4.4276]
[1753462518234,2.74514441,3642.8,3642.5,0.4599]
[1753462518754,2.74509558,3642.9,3642.5,0.4599]
[1753462519330,2.74515792,3642.8,3642.5,0.4599]
[1753462519529,2.74515792,3642.8,3642.4,4.4276]
[1753462519851,0.7418158,3642.6,3642.4,4.4276]
[1753462520447,0.2745158,3642.6,3642.4,4.4276]
[1753462520650,1e-08,3642.6,3642.5,0.9229]
[1753462521327,1e-08,3642.6,3642.5,3.66826719]
[1753462522846,1e-08,3642.6,3642.5,4.43346719]
[1753462523047,1e-08,3642.6,3642.5,1.2251]
[1753462523252,0.46730001,3642.6,3642.5,4.288]
[1753462523656,1e-08,3642.6,3642.5,4.288]
[1753462524349,1e-08,3642.6,3642.4,2.88298609]
[1753462524557,0.46730001,3642.6,3642.4,0.1376]
[1753462524754,2.74550428,3642.4,3641.9,0.001]
[1753462524927,2.74561588,3642.2,3641.9,0.001]
[1753462525127,3.7529552,3642.3,3641.9,0.001]
[1753462525447,0.40251043,3642.3,3642.0,0.4599]
[1753462525645,0.86981043,3642.3,3641.9,0.001]
[1753462525958,0.4673,3642.3,3641.9,0.4609]
[1753462526454,2.74555213,3642.3,3641.9,0.001]
[1753462526629,2.74574409,3642.0,3641.9,0.001]
[1753462526832,0.9509,3642.1,3641.9,0.001]
[1753462527149,3.70244409,3642.0,3641.9,0.001]
[1753462527354,7.44233913,3642.0,3641.9,0.001]
[1753462529433,7.69797355,3642.0,3641.9,0.001]
[1753462529635,7.44233913,3642.0,3641.9,0.001]
[1753462530532,7.99233913,3642.0,3641.9,0.001]
[1753462530941,8.2479452,3642.0,3641.9,0.001]
[1753462531151,7.99233913,3642.0,3641.9,0.001]
[1753462531957,6.95293913,3642.0,3641.9,0.001]
[1753462532322,7.44233913,3642.0,3641.9,0.001]
[1753462532523,6.95293913,3642.0,3641.9,0.001]
[1753462533258,7.6981387,3642.0,3641.9,0.001]
[1753462533762,8.2481387,3642.0,3641.9,0.001]
[1753462533928,8.9997387,3642.0,3641.9,0.001]
[1753462534463,5.28269461,3642.0,3641.9,0.001]
[1753462534640,7.77263913,3642.0,3641.9,0.4609]
[1753462534838,0.1376,3642.1,3641.9,0.4609]
[1753462534839,4.4246,3642.1,3641.9,0.4609]
[1753462535133,0.1376,3642.1,3641.9,0.4609]
[1753462535344,4.287,3642.2,3642.0,0.4599]
[1753462535558,0.21045565,3642.5,3642.1,0.463]
[1753462535745,1.42861595,3642.5,3642.1,0.463]
[1753462535941,1.2181603,3642.5,3642.2,0.9229]
[1753462536140,4.2181603,3642.5,3642.2,0.9229]
[1753462536463,1e-08,3642.6,3642.3,0.8889]
[1753462536661,2.74534632,3642.6,3642.4,0.4592]
[1753462536862,2.74534632,3642.6,3642.1,0.4592]
[1753462536863,2.74530674,3642.6,3642.1,0.4592]
[1753462537064,2.74532045,3642.6,3642.1,0.5968]
[1753462537363,0.46790001,3642.6,3642.2,0.4592]
[1753462537527,2.74544256,3642.4,3641.9,0.4602]
[1753462537725,0.1376,3642.2,3641.9,0.001]
[1753462537943,2.7456687,3642.1,3641.9,0.001]
[1753462538142,0.1376,3642.2,3641.9,0.001]
[1753462538455,2.88319488,3642.2,3641.9,0.4602]
[1753462539086,0.1376,3642.2,3641.9,3.63571207]
[1753462539278,0.1376,3642.2,3642.0,0.4592]
[1753462539879,0.1376,3642.2,3642.1,0.4592]
[1753462540175,1e-08,3642.6,3642.1,0.4592]
[1753462540355,1e-08,3642.6,3642.2,0.4297]
[1753462540550,1e-08,3642.6,3642.2,3.1752803]
[1753462540756,1e-08,3642.6,3642.3,0.4592]
[1753462541079,1e-08,3642.6,3642.3,0.8889]
[1753462541277,1e-08,3642.6,3642.4,0.4592]
[1753462541576,1e-08,3642.6,3642.3,0.4592]
[1753462542181,2.74531429,3642.6,3642.4,0.4592]
[1753462542359,1e-08,3642.6,3642.4,0.4592]
[1753462542746,2.74534,3642.6,3642.4,0.4592]
[1753462542960,0.98779334,3642.6,3642.2,0.4592]
[1753462543199,3.73308631,3642.6,3642.3,0.4592]
[1753462543399,0.98779334,3642.6,3642.3,0.4592]
[1753462543574,1e-08,3642.6,3642.4,0.4592]
[1753462543888,1e-08,3642.6,3641.9,0.001]
[1753462544098,2.74543818,3642.5,3642.0,0.1376]
[1753462544297,2.74544256,3642.4,3642.1,0.4592]
[1753462544476,0.4679,3642.5,3642.1,0.4592]
[1753462544789,2.88294462,3642.6,3642.2,0.4592]
[1753462544958,2.74539651,3642.5,3642.0,0.1376]
[1753462545296,2.74546491,3642.4,3642.1,0.4592]
[1753462545497,2.74546491,3642.4,3642.0,0.1376]
[1753462545663,3.94282834,3642.6,3642.1,0.4592]
[1753462545664,0.002,3642.2,3642.1,0.4592]
[1753462545865,0.002,3642.2,3642.1,3.2048687]
[1753462546475,0.002,3642.2,3642.1,3.6345687]
[1753462546694,0.002,3642.2,3642.1,0.8889]
[1753462546990,0.002,3642.2,3642.1,3.6345687]
[1753462548083,0.002,3642.2,3642.1,5.03776088]
[1753462548400,0.002,3642.2,3642.1,5.06521756]
[1753462548602,0.002,3642.2,3642.1,9.34921756]
[1753462548802,0.002,3642.2,3642.1,9.32176088]
[1753462549181,0.002,3642.2,3642.1,8.89206088]
[1753462549490,0.002,3642.2,3642.1,8.2401687]
[1753462549796,0.002,3642.2,3642.1,5.4945]
[1753462550178,0.002,3642.2,3642.1,8.2401687]
[1753462550381,0.002,3642.2,3642.1,3.9561687]
[1753462551096,0.002,3642.2,3642.1,1.2105]
[1753462551294,0.002,3642.2,3642.1,0.4592]
[1753462551674,0.002,3642.2,3642.0,4.4206]
[1753462551868,0.002,3642.2,3642.0,7.16632667]
[1753462552168,0.002,3642.2,3642.0,4.4206]
[1753462552372,0.002,3642.2,3642.1,0.4592]
[1753462552569,2.7456687,3642.1,3641.9,0.001]
[1753462552768,1.01722537,3642.0,3641.9,0.001]
[1753462553007,3.21364409,3642.0,3641.9,0.001]
[1753462553504,3.67894409,3642.0,3641.9,0.001]
[1753462555083,3.93511927,3642.0,3641.9,0.001]
[1753462555310,6.93511927,3642.0,3641.9,0.001]
[1753462559010,4.07017028,3641.7,3641.6,1e-08]
[1753462559211,20.31734546,3641.7,3641.6,1e-08]
[1753462559396,20.47095964,3641.7,3641.6,1e-08]
[1753462559585,21.40415964,3641.7,3641.6,1e-08]
[1753462559904,17.12200249,3641.7,3641.6,1e-08]
[1753462560087,24.10309425,3641.7,3641.6,1e-08]
[1753462560287,21.90409425,3641.7,3641.6,1e-08]
[1753462560489,17.62209425,3641.7,3641.6,1e-08]
[1753462560809,20.04308007,3641.7,3641.6,1e-08]
[1753462561306,20.19669116,3641.7,3641.6,1e-08]
[1753462561513,0.25601803,3641.7,3641.6,0.45920001]
[1753462561719,4.281,3642.1,3641.6,3.6348832]
[1753462561877,3.0018313,3642.0,3641.7,0.4592]
[1753462562077,3.00183155,3642.0,3641.7,0.4592]
[1753462562304,3.15538767,3642.0,3641.7,0.4592]
[1753462562511,1.01839886,3641.9,3641.6,1e-08]
[1753462562807,0.25601803,3641.9,3641.6,0.45920001]
[1753462563014,0.25601803,3642.0,3641.7,0.4592]
[1753462563314,0.25601803,3642.0,3641.8,0.4592]
[1753462563494,0.25601803,3642.0,3641.9,0.4592]
[1753462564101,4.4186,3642.1,3641.9,0.4592]
[1753462564305,4.4186,3642.1,3642.0,0.4592]
[1753462565319,7.1642687,3642.1,3642.0,0.4592]
[1753462565613,4.4186,3642.1,3642.0,0.4592]
[1753462565916,0.002,3642.2,3642.0,0.4592]
[1753462566279,0.002,3642.2,3642.1,0.4704]
[1753462567011,0.002,3642.2,3642.1,3.2160687]
[1753462567178,0.002,3642.2,3642.1,4.55694698]
[1753462568021,0.002,3642.2,3642.1,5.36760366]
[1753462568410,0.002,3642.2,3642.1,8.36760366]
[1753462568611,0.002,3642.2,3642.1,8.34014698]
[1753462568824,1e-08,3642.6,3642.5,2.74536719]
[1753462569144,1e-08,3642.6,3642.5,8.79726261]
[1753462569422,1e-08,3642.6,3642.5,12.70590894]
[1753462569730,0.002,3643.3,3642.9,6.52826574]
[1753462570094,0.002,3643.3,3643.2,3.5280397]
[1753462570290,0.002,3643.4,3643.3,5.74476436]
[1753462570495,0.002,3643.4,3643.3,7.93713885]
[1753462571089,0.002,3643.4,3643.3,12.21713885]
[1753462571287,0.1368,3644.8,3643.4,6.52788902]
[1753462571595,0.40970934,3645.4,3644.7,3.66368615]
[1753462571803,0.1368,3645.5,3644.9,2.88029905]
[1753462572014,3.0,3645.4,3644.9,0.1368]
[1753462572213,1.6686229,3645.4,3644.9,0.1368]
[1753462572411,0.1368,3645.5,3644.9,0.6072]
[1753462572720,0.1368,3645.5,3645.0,0.4704]
[1753462573133,0.1368,3645.5,3644.9,3.34604393]
[1753462573335,0.1368,3645.5,3645.1,3.21377608]
[1753462573537,0.1368,3645.6,3645.1,0.4704]
[1753462573707,0.28797736,3645.5,3645.2,0.4704]
[1753462573907,3.03109311,3645.5,3645.0,4.278]
[1753462574104,0.28797736,3645.5,3645.1,0.4704]
[1753462574329,0.28797736,3645.5,3645.2,0.4657]
[1753462574528,3.03114621,3645.5,3645.0,4.278]
[1753462574731,2.74327992,3645.3,3645.0,4.278]
[1753462575040,0.59109054,3645.4,3645.1,0.4704]
[1753462575241,0.59109054,3645.4,3645.0,4.7437]
[1753462575438,2.74317072,3645.5,3645.1,0.4704]
[1753462575653,0.1368,3645.6,3645.2,0.4704]
[1753462575831,0.4989,3647.0,3645.2,0.4704]
[1753462575832,2.74271338,3646.1,3645.4,0.1368]
[1753462576157,0.1368,3646.0,3645.4,0.1368]
[1753462576318,0.1368,3646.0,3645.4,2.8799629]
[1753462576512,0.34328906,3645.9,3645.5,2.74310413]
[1753462576706,0.34328906,3645.9,3645.5,0.4704]
[1753462576907,0.1368,3646.0,3645.5,0.4704]
[1753462577149,0.1368,3646.0,3645.3,2.87999286]
[1753462577150,0.4546,3645.9,3645.3,2.87999286]
[1753462577347,0.4546,3645.9,3645.1,0.1368]
[1753462577549,2.74316044,3645.5,3645.1,0.1368]
[1753462577746,0.1368,3645.6,3645.1,0.1368]
[1753462577909,3.3345057,3645.6,3645.1,0.6072]
[1753462578111,2.74281066,3645.9,3645.2,0.4704]
[1753462578417,0.1368,3645.6,3645.1,0.1368]
[1753462578736,3.19777889,3645.5,3645.1,0.1368]
[1753462578911,2.74317889,3645.5,3645.1,0.1368]
[1753462579111,2.74333369,3645.2,3645.1,0.1368]
[1753462579344,2.74347591,3645.1,3644.7,0.9512]
[1753462579730,2.74361696,3644.9,3644.4,4.276]
[1753462579929,2.74371004,3644.7,3644.6,0.1368]
[1753462580117,0.4546,3644.9,3644.4,2.8807241]
[1753462580446,0.1368,3644.9,3644.5,0.4704]
[1753462580643,2.88041642,3644.9,3644.4,0.1368]
[1753462580842,0.1368,3644.9,3644.4,0.1368]
[1753462581043,0.5914,3644.9,3644.4,0.1368]
[1753462581247,0.92488234,3644.9,3644.4,0.1368]
[1753462581412,3.0,3645.6,3644.7,2.74366162]
[1753462581618,0.1368,3645.3,3644.7,2.88046162]
[1753462581855,0.4969,3645.8,3644.7,2.88046162]
[1753462581856,0.09794791,3646.2,3645.5,2.74303883]
[1753462582060,0.09794791,3646.2,3644.8,4.7454]
[1753462582061,0.1368,3646.2,3645.6,0.4704]
[1753462582227,0.1368,3646.2,3645.7,0.1368]
[1753462582427,0.1368,3646.2,3645.7,0.6072]
[1753462582624,0.5914,3646.2,3645.7,0.6072]
[1753462582829,0.4546,3646.1,3645.7,0.1368]
[1753462583118,3.19732425,3646.1,3645.4,3.96404573]
[1753462583315,0.48226,3646.0,3645.4,1.3577]
[1753462583515,0.48226,3646.0,3645.5,2.74310794]
[1753462583720,0.48226,3646.0,3645.6,0.4704]
[1753462583935,0.34546,3646.0,3645.7,0.4704]
[1753462584246,0.34546,3646.0,3645.4,0.77793183]
[1753462584247,0.30880549,3645.9,3645.6,0.1368]
[1753462584451,2.74310919,3645.5,3645.1,0.7505]
[1753462584654,2.74311826,3645.5,3645.2,0.1368]
[1753462584815,0.5914,3645.8,3645.2,0.6072]
[1753462585018,2.7431653,3645.5,3645.2,0.6072]
[1753462585657,2.74305945,3645.6,3645.2,0.6072]
[1753462586016,2.74305945,3645.6,3645.2,0.1368]
[1753462586212,3.0,3646.2,3645.3,0.9361]
[1753462586450,0.34546,3646.1,3645.3,0.9361]
[1753462586650,2.74285835,3645.9,3645.3,0.4704]
[1753462587030,3.34546,3646.1,3645.4,1.2678]
[1753462587360,3.34546,3646.1,3645.5,0.4704]
[1753462588153,3.34546,3646.1,3645.5,3.21350519]
[1753462588360,3.34546,3646.1,3645.5,0.4704]
[1753462588570,3.07734372,3646.0,3645.5,0.4704]
[1753462588851,0.334546,3646.0,3645.5,0.4704]
[1753462589053,3.0,3645.9,3645.6,0.4704]
[1753462589261,3.0,3645.9,3645.4,1.2678]
[1753462589560,2.74282208,3645.9,3645.5,0.4704]
[1753462589754,3.28416551,3645.9,3645.5,0.4704]
[1753462589955,0.54134343,3645.9,3645.5,0.4704]
[1753462590287,0.002,3646.1,3645.6,3.2134248]
[1753462590589,0.002,3646.1,3645.7,0.4704]
[1753462590972,2.74470914,3646.1,3645.8,0.4704]
[1753462591354,0.002,3646.1,3645.8,0.4704]
[1753462591597,2.74466242,3646.1,3645.8,0.4704]
[1753462591755,0.27446624,3646.0,3645.5,0.4704]
[1753462592086,3.19927851,3646.1,3645.6,0.4704]
[1753462592388,0.4566,3646.1,3645.6,0.4704]
[1753462592591,0.002,3646.1,3645.7,0.4704]
[1753462593296,0.002,3646.1,3645.8,0.4704]
[1753462593475,0.4566,3646.1,3645.5,0.4704]
[1753462593682,3.54494053,3646.1,3645.5,0.4704]
[1753462593896,3.54494053,3646.1,3645.5,3.21349778]
[1753462594214,0.002,3646.1,3645.8,2.74282465]
[1753462594357,0.002,3646.1,3645.9,0.4704]
[1753462594796,0.002,3646.1,3646.0,0.4704]
[1753462595305,0.002,3646.1,3645.4,5.0751]
[1753462595487,0.002,3646.1,3645.7,2.74290628]
[1753462595658,0.002,3646.1,3645.8,3.21327833]
[1753462596064,0.002,3646.1,3645.5,2.74310794]
[1753462596370,0.002,3646.1,3646.0,0.9061]
[1753462596757,0.002,3646.1,3646.0,1.3673]
[1753462596959,0.002,3646.1,3646.0,4.11003176]
[1753462597160,0.002,3646.1,3646.0,4.55993176]
[1753462597479,0.002,3646.1,3646.0,1.3673]
[1753462597996,0.002,3646.1,3646.0,4.11003176]
[1753462598374,0.002,3646.1,3646.0,1.3673]
[1753462598988,0.002,3646.1,3646.0,0.598]
[1753462599470,0.002,3646.1,3646.0,3.34073176]
[1753462599676,0.002,3646.1,3646.0,3.79063176]
[1753462600171,0.002,3646.1,3646.0,3.34073176]
[1753462600577,0.2567933,3646.1,3646.0,0.1368]
[1753462600774,0.002,3646.1,3646.0,0.1368]
[1753462601003,0.434,3646.1,3646.0,0.1368]
[1753462601366,0.002,3646.1,3646.0,0.1368]
[1753462603164,0.434,3646.1,3646.0,0.1368]
[1753462603791,3.17665653,3646.1,3646.0,0.1368]
[1753462603997,2.74293281,3645.8,3645.6,4.271]
[1753462604194,1.73468092,3646.1,3645.6,4.271]
[1753462604195,2.74281858,3645.9,3645.6,4.271]
[1753462604394,0.432,3645.8,3645.6,4.271]
[1753462604565,0.80938092,3646.1,3645.7,0.4612]
[1753462604770,0.002,3646.1,3645.8,0.4612]
[1753462604980,0.002,3646.1,3645.9,0.598]
[1753462605675,2.74468968,3646.1,3645.9,0.1368]
[1753462605884,3.17473176,3646.0,3645.6,4.271]
[1753462606182,0.432,3645.9,3645.7,0.1368]
[1753462606386,2.74467207,3646.1,3645.7,0.1368]
[1753462606868,0.432,3646.0,3645.7,0.1368]
[1753462607205,0.002,3646.1,3645.7,0.1368]
[1753462607368,2.7446647,3646.1,3645.8,0.4612]
[1753462607565,0.002,3646.1,3645.8,0.4612]
[1753462607767,0.002,3646.1,3645.9,1.2702]
[1753462608018,0.002,3646.1,3645.9,1.407]
[1753462608377,0.002,3646.1,3645.9,0.9458]
[1753462608565,0.002,3646.1,3645.6,0.4612]
[1753462608762,0.1388,3646.1,3645.6,0.1368]
[1753462608963,0.002,3646.1,3645.4,0.02743183]
[1753462609189,0.002,3646.1,3645.5,0.1368]
[1753462609190,1.3447,3646.0,3645.5,0.1368]
[1753462609391,0.432,3645.9,3645.5,0.1368]
[1753462609581,2.87959425,3646.0,3645.6,0.4612]
[1753462609880,2.74281162,3645.9,3645.6,0.4612]
[1753462610080,2.74281162,3645.9,3645.7,0.4612]
[1753462610281,2.74302243,3645.7,3645.5,0.1368]
[1753462610478,2.74302243,3645.7,3645.5,4.4068]
[1753462610876,0.432,3645.8,3645.5,0.1368]
[1753462611190,3.17491297,3645.8,3645.5,4.868]
[1753462611392,2.74283448,3645.9,3645.5,4.868]
[1753462611592,2.74290703,3645.8,3645.5,4.868]
[1753462611778,2.74287838,3645.9,3645.5,4.4068]
[1753462611979,2.87953843,3646.0,3645.6,0.9111]
[1753462612192,2.87953843,3646.0,3645.7,0.4612]
[1753462612513,2.74280815,3645.9,3645.7,0.4612]
[1753462612893,2.87956126,3646.0,3645.7,0.4612]
[1753462613515,0.1368,3646.0,3645.7,0.4612]
[1753462613736,0.1368,3646.0,3645.9,0.8127]
[1753462613873,0.002,3646.1,3645.9,1.2739]
[1753462614219,3.17473176,3646.0,3645.9,4.27]
[1753462614428,0.432,3646.0,3645.9,4.27]
[1753462614741,0.432,3646.0,3645.3,4.01713155]
[1753462614742,2.74282022,3645.9,3645.3,4.01713155]
[1753462614884,0.432,3646.0,3645.4,7.0131114]
[1753462615087,0.432,3646.0,3645.5,7.01309067]
[1753462615395,0.432,3645.9,3645.6,4.27]
[1753462615811,0.64941064,3646.1,3645.3,1.2739]
[1753462615981,2.74279088,3646.0,3645.4,4.7312]
[1753462616620,2.74279088,3646.0,3645.4,7.474332]
[1753462616793,2.74282324,3645.9,3645.4,4.7312]
[1753462616994,3.15611064,3646.1,3645.4,4.7312]
[1753462616995,2.74278106,3646.0,3645.4,7.01317873]
[1753462617196,0.432,3645.9,3645.5,4.7312]
[1753462617396,0.002,3646.1,3645.5,4.7312]
[1753462617602,0.002,3646.1,3645.7,2.74295745]
[1753462617785,0.002,3646.1,3645.7,2.74289885]
[1753462617983,0.002,3646.1,3645.8,0.4612]
[1753462618199,0.002,3646.1,3645.9,7.01178114]
[1753462618401,0.002,3646.1,3646.0,2.74273176]
[1753462618599,0.002,3646.1,3646.0,2.71368876]
[1753462618797,0.002,3646.1,3646.0,4.41408876]
[1753462619324,0.002,3646.1,3646.0,3.99323176]
[1753462619503,0.002,3646.1,3646.0,4.44313176]
[1753462621201,0.002,3646.1,3646.0,5.58862651]
[1753462622505,0.002,3647.0,3646.9,3.51345489]
[1753462622705,0.002,3647.0,3646.9,7.78245489]
[1753462622905,0.002,3647.0,3646.9,8.69355489]
[1753462623733,0.002,3647.0,3646.9,8.83035489]
[1753462625203,0.002,3647.0,3646.9,9.24608017]
[1753462628337,0.002,3647.0,3646.9,0.9082]
[1753462628537,0.002,3647.0,3646.9,4.268]
[1753462628732,2.74207895,3646.9,3646.6,0.1368]
[1753462629034,2.74235012,3646.6,3646.5,4.267]
[1753462629238,0.1368,3646.7,3646.2,0.1368]
[1753462629407,0.7885,3646.3,3645.3,0.7502]
[1753462629603,5.74265653,3646.1,3646.0,0.1368]
[1753462630106,3.18435653,3646.1,3645.7,0.1368]
[1753462630306,0.4417,3646.1,3645.8,4.267]
[1753462631522,3.18437507,3646.1,3645.8,4.267]
[1753462631929,0.4417,3646.1,3645.8,4.267]
[1753462632241,0.4417,3646.4,3645.9,0.4512]
[1753462632538,3.4417,3646.4,3646.0,0.588]
[1753462632749,0.002,3647.0,3646.1,4.7182]
[1753462632947,0.002,3647.0,3646.9,2.74205489]
[1753462633111,0.002,3647.0,3646.9,7.00905489]
[1753462633641,0.002,3647.0,3646.9,7.90875489]
[1753462634013,0.002,3647.0,3646.9,7.46025489]
[1753462634709,0.002,3647.0,3646.9,4.267]
[1753462634930,0.002,3647.0,3646.8,0.1368]
[1753462635134,0.002,3647.0,3646.9,4.267]
[1753462635547,0.002,3647.0,3646.9,7.46025489]
[1753462635741,0.002,3647.0,3646.9,7.59705489]
[1753462636049,0.002,3647.0,3646.9,9.86897455]
[1753462637634,0.002,3647.0,3646.9,13.41897455]
[1753462637635,1e-08,3647.0,3646.9,13.41897455]
[1753462640151,1e-08,3647.0,3646.9,1.48511966]
[1753462640354,1e-08,3647.0,3646.9,8.68495489]
[1753462640716,1e-08,3647.0,3646.9,12.23495489]
[1753462641953,1e-08,3647.0,3646.9,11.68395489]
[1753462642454,1e-08,3647.0,3646.9,8.68395489]
[1753462642638,1e-08,3647.0,3646.9,8.23545489]
[1753462642844,1e-08,3647.0,3646.9,9.63321462]
[1753462643063,1e-08,3647.0,3646.9,4.91701462]
[1753462643245,1e-08,3647.0,3646.9,7.78425489]
[1753462644366,1e-08,3647.0,3646.9,8.23545489]
[1753462644549,1e-08,3647.0,3646.9,8.68395489]
[1753462647531,1e-08,3647.0,3646.9,8.23545489]
[1753462650153,1e-08,3647.0,3646.9,8.37225489]
[1753462650361,1e-08,3647.0,3646.9,9.93219462]
[1753462650875,1e-08,3647.0,3646.9,12.93219462]
[1753462654953,1e-08,3647.0,3646.9,12.93319462]
[1753462656771,1e-08,3647.0,3646.9,13.48319462]
[1753462656977,1e-08,3647.0,3646.9,8.76969462]
[1753462657149,1e-08,3647.0,3646.9,13.03369462]
[1753462657348,0.4693,3648.4,3648.2,2.74107779]
[1753462657561,1.2682,3648.6,3648.3,7.00500265]
[1753462657768,0.4925,3648.4,3648.3,7.14180265]
[1753462658056,0.9618,3648.4,3648.3,4.4008]
[1753462658465,0.9618,3648.4,3648.2,4.264]
[1753462658672,0.9618,3648.4,3647.4,3.49185893]
[1753462658673,0.9125,3648.6,3648.3,4.264]
[1753462658838,0.37649214,3648.5,3648.0,0.1368]
[1753462659039,0.1368,3648.4,3648.1,4.264]
[1753462659272,1.7375,3648.3,3647.1,0.7502]
[1753462659439,3.7029301,3648.2,3647.7,0.1368]
[1753462659639,0.9618,3648.2,3647.7,0.1368]
[1753462659838,2.74122807,3648.0,3647.7,4.264]
[1753462660064,0.9618,3647.9,3647.7,4.264]
[1753462660341,0.9618,3647.9,3647.8,4.264]
[1753462661572,2.74144135,3647.8,3647.7,4.264]
[1753462661792,3.70324571,3647.8,3646.9,0.001]
[1753462661969,2.74181161,3647.3,3647.0,4.264]
[1753462662170,1.743,3647.2,3647.0,4.264]
[1753462662489,0.9618,3647.1,3647.0,4.264]
[1753462663647,1.42394828,3647.1,3646.9,0.001]
[1753462663848,0.7812,3647.2,3646.9,0.001]
[1753462664091,0.918,3647.5,3646.9,0.1378]
[1753462664299,0.7812,3648.0,3647.9,2.74130321]
[1753462664444,1.2505,3648.0,3647.8,2.74135818]
[1753462664643,0.4693,3647.9,3647.7,7.00542521]
[1753462664952,0.4693,3647.8,3647.7,7.00542521]
[1753462666186,0.4693,3647.8,3647.7,4.264]
[1753462666480,0.4693,3647.8,3647.7,7.00545351]
[1753462666684,0.8237,3648.2,3647.9,2.74130321]
[1753462666884,1.293,3648.2,3648.0,2.74122807]
[1753462667088,0.4693,3648.1,3648.0,2.74122807]
[1753462667275,0.9618,3648.1,3647.8,0.1368]
[1753462667464,0.8237,3648.2,3647.8,0.1368]
[1753462667670,0.9618,3648.0,3647.8,2.74137655]
[1753462667870,0.4693,3647.9,3647.7,7.14222288]
[1753462668053,0.4693,3647.9,3647.8,2.74137836]
[1753462668392,0.9605,3648.2,3647.7,7.14222486]
[1753462668588,0.4693,3647.8,3647.7,7.14222486]
[1753462668891,1.4298,3648.2,3647.7,4.4008]
[1753462669063,0.49198385,3648.1,3647.7,7.14220939]
[1753462669255,0.98448385,3648.1,3647.7,7.14220939]
[1753462669450,0.49198385,3648.1,3647.7,4.264]
[1753462669749,0.4693,3648.0,3647.7,4.264]
[1753462669980,0.9618,3647.9,3647.6,0.1368]
[1753462670170,0.9618,3647.8,3647.7,4.264]
[1753462670370,1.7912,3647.8,3647.7,4.264]
[1753462671999,4.53258936,3647.8,3647.2,0.1368]
[1753462672293,0.1368,3647.4,3647.2,4.264]
[1753462672463,0.4693,3647.3,3647.2,4.264]
[1753462672969,0.9618,3647.3,3647.2,4.264]
[1753462673374,0.9618,3647.3,3647.1,4.264]
[1753462673697,0.8203,3647.1,3646.9,0.001]
[1753462673892,0.9571,3647.1,3646.9,0.001]
[1753462674100,0.1368,3647.1,3646.9,0.001]
[1753462674279,0.1368,3647.1,3646.9,0.5004]
[1753462674657,0.4693,3647.0,3646.9,0.001]
[1753462675104,7.5240797,3647.0,3646.9,0.001]
[1753462675287,9.9795952,3647.0,3646.9,0.001]
[1753462675466,7.93444264,3647.0,3646.9,0.001]
[1753462675794,7.7805952,3647.0,3646.9,0.001]
[1753462676101,9.27292354,3647.0,3646.9,0.001]
[1753462676775,8.78042354,3647.0,3646.9,0.001]
[1753462676984,9.27292354,3647.0,3646.9,0.001]
[1753462679289,13.53792354,3647.0,3646.9,0.001]
[1753462679858,0.00868,3646.8,3646.1,0.001]
[1753462680104,0.1368,3646.5,3646.1,0.001]
[1753462680301,0.6061,3646.5,3646.1,0.001]
[1753462680612,1.86952035,3646.8,3646.1,0.001]
[1753462680613,1.2205,3646.4,3646.1,0.001]
[1753462680805,2.87938131,3646.2,3646.1,0.001]
[1753462681167,3.84118131,3646.2,3646.1,0.001]
[1753462681374,3.84118131,3646.2,3645.4,0.001]
[1753462681375,2.4002,3645.8,3645.4,0.001]
[1753462681709,6.49498532,3644.6,3643.4,0.001]
[1753462681930,4.5571094,3644.6,3643.4,0.001]
[1753462682132,4.5571094,3644.6,3644.0,0.4994]
[1753462682133,12.31797815,3644.6,3644.0,0.4994]
[1753462682329,7.95027815,3644.6,3644.0,0.4994]
[1753462682631,12.47386875,3644.6,3643.7,0.4994]
[1753462682799,13.54607244,3644.6,3643.4,0.001]
[1753462683206,15.04186995,3644.6,3644.5,1e-08]
[1753462683415,15.04186995,3644.6,3643.4,0.001]
[1753462683416,26.35115806,3644.6,3643.4,0.001]
[1753462683616,6.49581369,3643.5,3643.4,0.001]
[1753462683800,10.78681369,3643.5,3643.4,0.001]
[1753462684022,11.74861369,3643.5,3643.4,0.001]
[1753462684218,6.96511369,3643.5,3643.4,0.001]
[1753462684439,4.2205,3643.5,3643.4,0.001]
[1753462684592,3.7512,3643.5,3643.4,0.001]
[1753462684793,7.29,3643.5,3643.4,0.5004]
[1753462685026,3.0,3643.5,3643.4,0.5004]
[1753462685227,0.8197,3644.0,3643.4,0.9431]
[1753462685428,5.6040572,3644.6,3643.5,0.9421]
[1753462685429,3.8197,3644.5,3643.5,0.9421]
[1753462685650,1.90417572,3644.4,3643.4,0.001]
[1753462685930,2.74459661,3643.6,3643.4,0.001]
[1753462686095,3.53371369,3643.5,3643.4,0.001]
[1753462686432,7.99121369,3643.5,3643.4,0.001]
[1753462690239,12.28521369,3643.5,3643.4,0.001]
[1753462690452,10.69030545,3643.5,3643.4,0.001]
[1753462690650,14.51240545,3643.5,3643.4,0.001]
[1753462691442,15.12090545,3643.5,3643.4,0.001]
[1753462691649,14.64800545,3643.5,3643.4,0.001]
[1753462692057,15.11890545,3643.5,3643.4,0.001]